Cogmind - Beta 14 *** ADVENTURER MODE // 2024.08.16 @ 21:05:57 Player: Ms. V3-11A Result: Destroyed by B-86 Titan with Matter Neutralizer Performance ------------- Evolutions (5) 2500 Regions Visited (12) 2400 Robots Destroyed (173) 865 Value Destroyed (7381) 7381 Prototype IDs (62) 1240 Alien Tech Used (1) 200 Bonus (646) 646 TOTAL SCORE: 15232 Bonus ------- High Alert Combat Kills 46 Registered with UFD 300 Met Zhirov 300 Cogmind --------- Core Integrity 0/1000 Matter 42/300 Energy 340/340 System Corruption 6% Temperature Cool (9) Movement Core (800) Ox15 Location -4/Proximity Caves Parts ------- > --- POWER (2) -------- Heavy Antimatter Reactor > --- PROPULSION (3) --- (None) > --- UTILITY (10) ----- Large Storage Unit Improved Trap Scanner Weapon Cycler Makeshift Hacking Suite A0-MCA's Component Scanner > --- WEAPON (2) ------- Thunder Hammer > --- INVENTORY (15) --- Large Storage Unit Energy Well (350) Compact Matter Pod (0) Advanced Signal Interpreter 0b10 Decoder Chip [Looter] Makeshift Transmission Jammer Enhanced Scrap Shield Transdimensional Reconstructor Variable Charge Gun Heavy Ion Cannon Hypervelocity Railgun Long-range Missile Launcher Improved Remote Datajack CPS Tube (2) Peak State ------------ > --- POWER ------------ F-cell Engine Heavy Antimatter Reactor > --- PROPULSION ------- Carbon-fiber Leg Flexi-carbon Leg Flexi-carbon Leg > --- UTILITY ---------- Advanced Cooling System Large Storage Unit Improved Trap Scanner Weapon Cycler Experimental Power Shielding Improved Medium Armor Plating Layered Heavy Armor Plating Makeshift Hacking Suite A0-MCA's Component Scanner > --- WEAPON ----------- Hypervelocity Railgun Hypervelocity Railgun > --- INVENTORY -------- Large Storage Unit Energy Well Compact Matter Pod Advanced Signal Interpreter 0b10 Decoder Chip [Looter] Makeshift Transmission Jammer Enhanced Scrap Shield Transdimensional Reconstructor Variable Charge Gun Heavy Ion Cannon Long-range Missile Launcher Improved Remote Datajack CPS Tube Thunder Hammer [Rating: 102] Favorites ----------- Power Enhanced Nuclear Core Engine Improved Deuterium Engine Power Core Enhanced Nuclear Core Reactor Heavy Antimatter Reactor Propulsion Improved Titanium Leg Leg Improved Titanium Leg Wheel Subdweller Monowheel Utility Large Storage Unit Device Improved Cooling System Storage Large Storage Unit Processor A0-MCA's Component Scanner Hackware Makeshift Hacking Suite Protection Improved Medium Armor Plating Weapon Cooled Particle Cannon Energy Gun Medium Laser Energy Cannon Cooled Particle Cannon Ballistic Gun Precision Assault Rifle Ballistic Cannon Battle Cannon Launcher Long-range Missile Launcher Impact Weapon Thunder Hammer Build | -11 -10 -10 -8 -7 -7 -7 -7 -5 -5 -5 -5 -4 ------- Run | Yrd Mat Sub Mat Fac Sto Rec Scr Fac Upp Upp Zhi Pro Slots Evolved 10 | . . . 4 2 . . . 4 . . . . Power 1 | . . . . 1 . . . . . . . . Propulsion 1 | . . . 1 . . . . . . . . . Utility 8 | . . . 3 1 . . . 4 . . . . Weapon . | . . . . . . . . . . . . . Parts Attached 182 | . 8 17 24 22 17 5 10 60 6 2 7 4 Power 27 | . 2 2 5 3 2 1 1 9 . . 1 1 Engine 13 | . 2 2 3 2 1 1 1 1 . . . . Core 12 | . . . 2 1 1 . . 8 . . . . Reactor 2 | . . . . . . . . . . . 1 1 Propulsion 42 | . 1 5 6 5 3 1 7 13 . 1 . . Treads . | . . . . . . . . . . . . . Leg 36 | . 1 . 5 5 3 1 7 13 . 1 . . Wheel 6 | . . 5 1 . . . . . . . . . Hover . | . . . . . . . . . . . . . Flight . | . . . . . . . . . . . . . Utility 62 | . 4 3 9 7 5 2 2 22 6 . 2 . Device 27 | . . 1 5 4 1 1 . 11 3 . 1 . Storage 4 | . 2 . . . . . 1 1 . . . . Processor 2 | . . . . . . . . 2 . . . . Hackware 4 | . . . 1 . 1 . 1 1 . . . . Protection 25 | . 2 2 3 3 3 1 . 7 3 . 1 . Artifact . | . . . . . . . . . . . . . Weapon 51 | . 1 7 4 7 7 1 . 16 . 1 4 3 Energy Gun 9 | . 1 2 1 . 1 . . 3 . . . 1 Energy Cannon 16 | . . 3 2 5 2 1 . 3 . . . . Ballistic Gun 19 | . . 1 1 2 3 . . 6 . 1 4 1 Ballistic Cannon 2 | . . 1 . . 1 . . . . . . . Launcher 2 | . . . . . . . . 2 . . . . Special Weapon . | . . . . . . . . . . . . . Impact Weapon 3 | . . . . . . . . 2 . . . 1 Slashing Weapon . | . . . . . . . . . . . . . Piercing Weapon . | . . . . . . . . . . . . . Special Melee Weapon . | . . . . . . . . . . . . . Unidentified Prototypes 7 | . . 1 2 . 3 . . . . . 1 . Corrupted Parts 1 | . . . . . 1 . . . . . . . System Corruption 4 | . . . . . 4 . . . . . . . Parts Lost 41 | . . 10 3 1 3 1 . 12 2 . . 9 Power 6 | . . 1 1 . 1 . . 2 . . . 1 Propulsion 13 | . . 4 2 . 1 . . 3 . . . 3 Utility 15 | . . 1 . 1 1 . . 6 2 . . 4 Weapon 7 | . . 4 . . . 1 . 1 . . . 1 Highest Loss Streak 9 | . . 4 2 1 1 1 . 5 1 . . 9 To Critical Strikes . | . . . . . . . . . . . . . Average Slot Usage (%) 94 | . 90 90 81 99 98 97 100 91 93 94 82 84 Engine 6 | . 14 13 8 3 7 7 7 2 5 5 5 4 Core 6 | . . . 1 11 6 7 7 7 5 5 3 . Leg 19 | . 28 4 18 23 23 23 23 16 17 17 17 14 Wheel 1 | . . 17 . . . . . . . . . . Device 20 | . . . 22 22 22 20 23 23 27 23 21 15 Storage 7 | . 14 13 8 7 7 7 7 5 5 5 5 5 Processor 1 | . . . . . . . . 6 5 5 5 5 Hackware 5 | . . . 3 7 7 7 7 6 5 5 5 5 Protection 7 | . 4 13 8 7 6 7 7 6 6 11 12 13 Energy Gun 1 | . 13 4 . . 2 . . 2 . . . . Energy Cannon 5 | . . 2 8 7 9 7 7 3 5 1 . . Ballistic Gun 6 | . 14 10 2 6 2 7 7 4 5 9 . 7 Peak Build Rating 102 | 6 7 24 37 53 52 51 57 96 97 99 102 102 Average Rating 54 | 6 6 13 31 50 50 49 54 77 95 96 84 90 On Entrance 51 | 6 6 7 22 31 52 48 50 55 96 93 99 102 Naked Turns . | . . . . . . . . . . . . . Heaviest Build 98 | 14 39 40 50 67 64 60 56 84 86 86 98 98 Greatest Support 60 | 20 20 40 30 60 60 50 60 56 50 55 55 55 Greatest Overweight (x) 15 | . 1 13 13 1 1 1 1 1 1 1 1 15 Average Overweight (x) . | . . . 1 . . 1 . . 1 1 1 1 Largest Inventory Capacity 15 | 8 15 15 15 15 15 15 15 15 15 15 15 15 Average Capacity 14 | 8 13 15 15 15 15 15 15 15 15 15 15 15 Most Carried 15 | 5 6 15 15 15 15 15 15 15 15 15 15 15 Average Carried 13 | 4 4 12 14 14 14 14 13 14 13 13 14 15 Final Capacity 15 | 8 15 15 15 15 15 15 15 15 15 15 15 15 Final Carried 15 | 2 6 15 15 15 15 15 15 15 13 15 15 15 Class Distribution -------------------- 64% | Hacker-Mutant 14% | Scavenger-Mutant 11% | Mutant 8% | Derelict-Mutant Dominant Class ---------------- Mutant | -10/Materials Mutant | -10/Subcaves Scavenger-Mutant | -8/Materials Hacker-Mutant | -7/Factory Hacker-Mutant | -7/Storage Hacker-Mutant | -7/Recycling Hacker-Mutant | -7/Scraptown Hacker-Mutant | -5/Factory Hacker-Mutant | -5/Upper Caves Hacker-Mutant | -5/Upper Caves Hacker-Mutant | -5/Zhirov Hacker-Mutant | -4/Proximity Caves Resources | -11 -10 -10 -8 -7 -7 -7 -7 -5 -5 -5 -5 -4 ----------- Run | Yrd Mat Sub Mat Fac Sto Rec Scr Fac Upp Upp Zhi Pro Matter Collected 4663 | 171 180 462 423 669 283 183 249 1631 133 86 150 43 Remotely . | . . . . . . . . . . . . . Salvage Created 8774 | . 105 530 930 1733 980 294 . 3533 476 193 . . Parts 393 | . 1 24 47 81 46 15 . 136 27 16 . . Haulers Intercepted 4 | . 2 . . 2 . . . . . . . . Recyclers Shooed 7 | . . . 1 1 . . . 5 . . . . Parts Field Recycled . | . . . . . . . . . . . . . Retrieved Matter . | . . . . . . . . . . . . . Parts Self-Destructed 55 | . . 13 . . . . . . 26 16 . . Prevented . | . . . . . . . . . . . . . Kills | -11 -10 -10 -8 -7 -7 -7 -7 -5 -5 -5 -5 -4 ------- Run | Yrd Mat Sub Mat Fac Sto Rec Scr Fac Upp Upp Zhi Pro Combat Hostiles Destroyed 146 | . . 15 15 28 22 4 . 46 13 3 . . Guns 60 | . . 10 3 12 1 1 . 27 4 2 . . Cannons 77 | . . 5 10 14 20 2 . 16 9 1 . . AOE 4 | . . . . 2 . . . 2 . . . . Classes Destroyed 15 | . 1 3 6 4 . . . 1 . . . . Worker 11 | . . . . 4 . . . 7 . . . . Builder 1 | . . . 1 . . . . . . . . . Hauler 4 | . 2 . . 2 . . . . . . . . Recycler 8 | . . . 2 1 . . . 5 . . . . Operator 3 | . . . . 1 . . . 2 . . . . Swarmer 28 | . . 3 . . 7 . . 8 10 . . . Grunt 46 | . . . 5 15 6 . . 18 2 . . . Brawler 3 | . . . . 1 . . . 1 1 . . . Duelist 2 | . . . 1 1 . . . . . . . . Sentry 28 | . . . 8 4 6 4 . 6 . . . . Hunter 9 | . . . 1 2 1 . . 2 . 3 . . Programmer 17 | . . . . 5 2 . . 10 . . . . Behemoth 1 | . . . . . . . . 1 . . . . Artisan 1 | . . 1 . . . . . . . . . . Subdweller 12 | . . 12 . . . . . . . . . . Best Kill Streak 6 | . 2 3 5 6 4 1 . 6 5 2 . . Combat Bots Only 6 | . . 3 3 6 4 1 . 6 5 2 . . Max Kills in Single Turn 5 | . 1 1 1 4 1 1 . 5 2 1 . . Gunslinging . | . . . . . . . . . . . . . Exploded 2 | . . . . 1 . . . 2 . . . . Melee . | . . . . . . . . . . . . . Uniques/NPCs Destroyed . | . . . . . . . . . . . . . Combat | -11 -10 -10 -8 -7 -7 -7 -7 -5 -5 -5 -5 -4 -------- Run | Yrd Mat Sub Mat Fac Sto Rec Scr Fac Upp Upp Zhi Pro Hostile Shots Fired 1477 | . . 105 84 316 327 141 . 351 29 42 . 82 Missed 533 | . . 22 33 129 143 67 . 108 7 12 . 12 Damage Taken 11068 | . . 1298 578 1651 1093 403 . 3548 267 444 . 1786 Core 1668 | . . 242 85 166 130 40 . 563 10 29 . 403 Absorbed by Shields 862 | . . . . 138 388 . . 305 31 . . . Redirected to Shielding 244 | . . 3 8 . . . . 82 . . . 151 Ignored by Resistances 3500 | . . 412 168 538 482 143 . 1065 86 119 . 487 Regen/Repaired (Parts) 377 | . . . 74 99 92 . . 112 . . . . Core Remaining (%) 59 | 100 . 3 84 . . . 52 . . . . . Volleys Fired 562 | . 7 68 47 118 76 20 . 171 23 13 . 19 Largest 2 | . 2 2 2 2 2 2 . 2 2 2 . 2 Hottest 265 | . 70 108 85 134 134 97 . 159 130 130 . 265 Shots Fired 1020 | . 14 110 59 233 142 42 . 315 46 25 . 34 Gun 574 | . 14 75 12 97 55 21 . 222 23 21 . 34 Cannon 443 | . . 35 47 136 87 21 . 90 23 4 . . Launcher 3 | . . . . . . . . 3 . . . . Special . | . . . . . . . . . . . . . Kinetic 462 | . 7 68 12 97 28 21 . 156 23 21 . 29 Thermal 488 | . 7 42 47 117 98 1 . 144 23 4 . 5 Explosive 3 | . . . . . . . . 3 . . . . Electromagnetic 67 | . . . . 19 16 20 . 12 . . . . Robot Hit Streak 37 | . 10 36 12 17 21 23 . 37 11 9 . 27 Robot Miss Streak 4 | . 1 2 2 3 3 1 . 4 1 2 . 1 Penetration Max 1 | . . . . . . . . 1 . 1 . . Secondary Targets 1 | . . . . . . . . 1 . . . . Max Gunslinging Chain 1 | . . . . . . . . 1 . . . . Shots Hit Robots 786 | . 11 87 42 175 103 35 . 247 32 20 . 34 Core Hits 305 | . 4 24 19 68 38 8 . 115 16 10 . 3 Critical Kills 17 | . . . 2 . . . . 10 3 2 . . Critical Parts Destroyed 20 | . . . . . . 1 . 14 1 4 . . Critical Strikes 50 | . 1 2 2 . 1 2 . 27 4 6 . 5 Burn 4 | . 1 1 . . 1 . . 1 . . . . Meltdown 3 | . . . 2 . . . . 1 . . . . Destroy 40 | . . . . . . 1 . 25 4 6 . 4 Blast 1 | . . 1 . . . . . . . . . . Corrupt 1 | . . . . . . 1 . . . . . . Smash 1 | . . . . . . . . . . . . 1 Melee Attacks 6 | . . . . . . . . 1 . . . 5 Impact 6 | . . . . . . . . 1 . . . 5 Slashing . | . . . . . . . . . . . . . Piercing . | . . . . . . . . . . . . . Sneak Attacks . | . . . . . . . . . . . . . Combat Hostiles . | . . . . . . . . . . . . . Follow-up Attacks . | . . . . . . . . . . . . . Damage Inflicted 19156 | . 116 1305 1659 4251 2413 784 . 6735 1056 281 . 556 Guns 7066 | . 116 797 136 1159 597 367 . 3313 109 108 . 364 Cannons 11030 | . . 508 1523 2733 1791 417 . 2938 947 173 . . Explosions 832 | . . . . 333 23 . . 476 . . . . Melee 188 | . . . . . . . . . . . . 188 Ramming 40 | . . . . 26 2 . . 8 . . . 4 Kinetic 5161 | . 42 793 136 1159 249 367 . 1995 109 108 . 203 Thermal 11969 | . 74 512 1523 2398 1764 28 . 4389 947 173 . 161 Explosive 327 | . . . . 265 23 . . 39 . . . . Electromagnetic 1471 | . . . . 403 375 389 . 304 . . . . Impact 188 | . . . . . . . . . . . . 188 Slashing . | . . . . . . . . . . . . . Piercing . | . . . . . . . . . . . . . Highest Corruption 11 | . . . . 7 11 11 . 10 10 6 6 6 Average Corruption 7 | . . . . 4 10 11 . 6 4 6 6 6 Corruption Purged 7 | . . . . . . . . . 7 . . . Corruption Blocked . | . . . . . . . . . . . . . Effects 322 | . . . . 58 44 64 . 100 19 22 4 11 Message Errors 86 | . . . . 16 8 18 . 25 8 6 3 2 Matter Fused 68 | . . . . 13 9 18 . 21 2 3 . 2 Heat Flow Errors 23 | . . . . 6 3 2 . 8 2 2 . . Energy Discharges 45 | . . . . 7 7 7 . 18 1 4 . 1 Parts Rejected 3 | . . . . 1 . . . 1 . . . 1 Parts Fused 1 | . . . . . . 1 . . . . . . Data Loss (minor) 45 | . . . . 10 5 7 . 12 5 4 . 2 Data Loss (major) 9 | . . . . 1 3 1 . 2 . 1 1 . Misfires 17 | . . . . . 3 4 . 8 . 1 . 1 Alerts 10 | . . . . 1 . 5 . 3 1 . . . Misdirections 2 | . . . . . 2 . . . . . . . Weapon Failures 13 | . . . . 3 4 1 . 2 . 1 . 2 Overload Shots 68 | . . . . . . . . 39 23 3 . 3 Effects 4 | . . . . . . . . 3 . 1 . . Energy Bleed 2 | . . . . . . . . 2 . . . . Short Circuit 2 | . . . . . . . . 1 . 1 . . Overflow Damage 323 | . . 23 20 74 30 . . 103 73 . . . Projectiles 244 | . . 23 20 36 30 . . 62 73 . . . Explosions 79 | . . . . 38 . . . 41 . . . . Melee . | . . . . . . . . . . . . . Knockbacks 3 | . . 3 . . . . . . . . . . Impact . | . . . . . . . . . . . . . Kinetic 3 | . . 3 . . . . . . . . . . Secondary . | . . . . . . . . . . . . . Self-Inflicted Damage 114 | . . . . . 42 . . 72 . . . . Shots 3 | . . . . . 1 . . 2 . . . . Rammed . | . . . . . . . . . . . . . Targets Rammed 7 | . . . . 3 2 . . 1 . . . 1 Kicked 7 | . . . . 3 2 . . 1 . . . 1 Crushed . | . . . . . . . . . . . . . Highest Temperature 540 | . 63 38 56 184 173 142 . 235 69 149 . 540 Average Temperature 65 | . 32 16 23 39 13 67 . 82 63 80 . 233 Received Heat Transfer 3279 | . . 246 288 556 288 150 . 1228 45 . . 478 Effects 1 | . . . . . . . . . . . . 1 Damage (minor) 1 | . . . . . . . . . . . . 1 Siege Activations . | . . . . . . . . . . . . . Robots Corrupted 2 | . . . . . . 1 . 1 . . . . Combat Hostiles 1 | . . . . . . 1 . . . . . . Parts Fried 5 | . . . . . . 3 . 2 . . . . Impact Corruptions . | . . . . . . . . . . . . . Robots Melted 4 | . . . 2 . 1 . . 1 . . . . Combat Hostiles 4 | . . . 2 . 1 . . 1 . . . . Parts Melted 30 | . 2 4 3 1 6 . . 13 1 . . . Heat Transferred 14433 | . 296 1295 296 3454 2701 37 . 5106 850 174 . 224 Parts Sabotaged . | . . . . . . . . . . . . . Parts Stolen . | . . . . . . . . . . . . . Parts Stripped . | . . . . . . . . . . . . . Power Chain Reactions 2 | . . . . 1 . . . 1 . . . . Alert | -11 -10 -10 -8 -7 -7 -7 -7 -5 -5 -5 -5 -4 ------- Run | Yrd Mat Sub Mat Fac Sto Rec Scr Fac Upp Upp Zhi Pro Peak Influence 434 | . 19 . 216 247 313 135 . 434 . . . . Initial 83 | . . . . 83 7 56 . . . . . . Average 98 | . 4 . 59 85 152 43 . 163 . . . . Maximum Alert Level 2 | . . . 1 1 1 . . 2 . . . . Low Security (%) 80 | 100 100 . 97 89 74 100 . 56 . . . . Level 1 16 | . . . 2 10 25 . . 35 . . . . Level 2 2 | . . . . . . . . 7 . . . . Level 3 . | . . . . . . . . . . . . . Level 4 . | . . . . . . . . . . . . . Level 5 . | . . . . . . . . . . . . . High Security . | . . . . . . . . . . . . . Max Security . | . . . . . . . . . . . . . Squads Dispatched 29 | . . . . 11 6 . . 12 . . . . Investigation 9 | . . . . 4 2 . . 3 . . . . Extermination 12 | . . . . 5 3 . . 4 . . . . Reinforcement 8 | . . . . 2 1 . . 5 . . . . Assault . | . . . . . . . . . . . . . Garrison . | . . . . . . . . . . . . . Intercept . | . . . . . . . . . . . . . Searches Triggered . | . . . . . . . . . . . . . Construction Impeded 2 | . . . . . . . . 2 . . . . Haulers Reinforced . | . . . . . . . . . . . . . Active Scanning Responses . | . . . . . . . . . . . . . Cargo Convoy Interrupts . | . . . . . . . . . . . . . Stealth | -11 -10 -10 -8 -7 -7 -7 -7 -5 -5 -5 -5 -4 --------- Run | Yrd Mat Sub Mat Fac Sto Rec Scr Fac Upp Upp Zhi Pro Distress Signals 11 | . 2 . 2 3 3 . . 1 . . . . Communications Jammed 12 | . . . . . . . . 12 . . . . Distress Signals 12 | . . . . . . . . 12 . . . . Times Spotted 202 | . . 15 25 42 29 4 . 65 13 8 . 1 Peak Tracking Total 8 | . . 3 6 5 4 1 . 8 2 4 . 1 Tactical Retreats 13 | . . . . 2 1 . . 8 . 2 . . Traps | -11 -10 -10 -8 -7 -7 -7 -7 -5 -5 -5 -5 -4 ------- Run | Yrd Mat Sub Mat Fac Sto Rec Scr Fac Upp Upp Zhi Pro Traps Triggered 12 | . 4 1 . 3 1 . . 2 . 1 . . Indirectly 2 | . . . . . . . . 2 . . . . Trap Hack Attempts . | . . . . . . . . . . . . . Triggered . | . . . . . . . . . . . . . Disarmed . | . . . . . . . . . . . . . Reprogrammed . | . . . . . . . . . . . . . Reused . | . . . . . . . . . . . . . Traps Extracted . | . . . . . . . . . . . . . Installed . | . . . . . . . . . . . . . Triggered . | . . . . . . . . . . . . . Machines | -11 -10 -10 -8 -7 -7 -7 -7 -5 -5 -5 -5 -4 ---------- Run | Yrd Mat Sub Mat Fac Sto Rec Scr Fac Upp Upp Zhi Pro Machines Disabled 28 | . . . . 4 4 1 . 19 . . . . Max in Single Turn 7 | . . . . 4 1 1 . 7 . . . . Garrison Access 2 | . . . . 1 . . . 1 . . . . Machines Repaired . | . . . . . . . . . . . . . Machines Dismantled . | . . . . . . . . . . . . . Machines Sabotaged . | . . . . . . . . . . . . . Overloaded Fab Kills . | . . . . . . . . . . . . . Hacking | -11 -10 -10 -8 -7 -7 -7 -7 -5 -5 -5 -5 -4 --------- Run | Yrd Mat Sub Mat Fac Sto Rec Scr Fac Upp Upp Zhi Pro Machines Accessed 67 | . 9 1 8 9 8 11 3 12 . 1 5 . Terminals 35 | . 7 . 5 3 7 6 . 7 . . . . Fabricators 2 | . . . . . . . . 2 . . . . Repair Stations 6 | . . . 1 2 1 . . 2 . . . . Recycling Units 9 | . 2 . . 2 . 5 . . . . . . Scanalyzers 3 | . . . 2 1 . . . . . . . . Garrison Access 2 | . . . . 1 . . . 1 . . . . Total Hacks 214 | . 28 4 36 26 23 26 13 30 . 1 27 . Successful 139 | . 19 4 26 11 13 11 13 14 . 1 27 . Failed 74 | . 8 . 10 15 10 15 . 16 . . . . Catastrophic 7 | . . . 1 3 . . . 3 . . . . Database Lockouts 1 | . 1 . . . . . . . . . . . Manual 89 | . 18 . 16 13 8 22 . 12 . . . . Terminals 119 | . 24 . 25 12 19 20 . 19 . . . . Fabricators 4 | . . . . . . . . 4 . . . . Repair Stations 16 | . . . 2 5 4 . . 5 . . . . Recycling Units 13 | . 4 . . 3 . 6 . . . . . . Scanalyzers 13 | . . . 9 4 . . . . . . . . Garrison Access 4 | . . . . 2 . . . 2 . . . . Terminal Hacks 83 | . 8 4 10 4 8 4 13 4 . 1 27 . Record 24 | . 1 4 . . . . 4 . . . 15 . Part Schematic 7 | . . . . . . 2 . 1 . . 4 . Robot Analysis 14 | . . . 1 1 . . 8 . . . 4 . Prototype ID Bank 15 | . 3 . 4 1 2 1 . . . . 4 . Open Door 3 | . . . . . 2 . . . . 1 . . Branch Access Points 4 | . . . 1 1 1 . . 1 . . . . Terminal Index 3 | . 1 . . 1 . . . 1 . . . . Repair Station Index 1 | . . . 1 . . . . . . . . . Unreport Threat 2 | . . . . . 1 1 . . . . . . Hauler Manifests 1 | . . . 1 . . . . . . . . . Zone Layout 8 | . 3 . 2 . 2 . . 1 . . . . Derelict Proto ID Bank 1 | . . . . . . . 1 . . . . . Fabricator Hacks 2 | . . . . . . . . 2 . . . . Load Schematic 1 | . . . . . . . . 1 . . . . Build 1 | . . . . . . . . 1 . . . . Repair Station Hacks 12 | . . . 2 2 4 . . 4 . . . . Scan Component 6 | . . . 1 1 2 . . 2 . . . . Repair 6 | . . . 1 1 2 . . 2 . . . . Recycling Unit Hacks 2 | . 2 . . . . . . . . . . . Retrieve Components 2 | . 2 . . . . . . . . . . . Scanalyzer 9 | . . . 7 2 . . . . . . . . Insert Component 5 | . . . 4 1 . . . . . . . . Analyze 4 | . . . 3 1 . . . . . . . . Garrison Access Hacks 2 | . . . . 1 . . . 1 . . . . Seal Access 2 | . . . . 1 . . . 1 . . . . Unauthorized Hacks 29 | . 9 . 7 2 1 7 . 3 . . . . Terminals 22 | . 8 . 7 1 1 2 . 3 . . . . Botnet 13 | . 3 . 3 1 1 2 . 3 . . . . Skim 9 | . 5 . 4 . . . . . . . . . Fabricators . | . . . . . . . . . . . . . Repair Stations . | . . . . . . . . . . . . . Recycling Units 7 | . 1 . . 1 . 5 . . . . . . Reject 1 | . 1 . . . . . . . . . . . Tunnel 6 | . . . . 1 . 5 . . . . . . Scanalyzers . | . . . . . . . . . . . . . Garrison Access . | . . . . . . . . . . . . . Data Cores Recovered 1 | . . . . . . . . 1 . . . . Used 1 | . . . . . . . . 1 . . . . Hacking Detections 45 | . 5 . 8 7 8 7 . 10 . . . . Full Trace Events 9 | . . . . 3 2 2 . 2 . . . . Feedback Events 1 | . . . . . . . . 1 . . . . Hackware Fried 1 | . . . . . . . . 1 . . . . Feedback Blocked . | . . . . . . . . . . . . . Robot Schematics Acquired . | . . . . . . . . . . . . . Robots Built . | . . . . . . . . . . . . . Authchips . | . . . . . . . . . . . . . Time . | . . . . . . . . . . . . . Total Robot Build Rating . | . . . . . . . . . . . . . Part Schematics Acquired 11 | . . . 3 1 . 2 . 1 . . 4 . Parts Built 2 | . . . . . . . . 2 . . . . Authchips . | . . . . . . . . . . . . . Time 128 | . . . . . . . . 128 . . . . Total Part Build Rating 16 | . . . . . . . . 16 . . . . Parts Repaired 6 | . . . 1 1 2 . . 2 . . . . Time 160 | . . . 13 30 82 . . 35 . . . . Parts Recycled . | . . . . . . . . . . . . . Recycled Matter . | . . . . . . . . . . . . . Retrieved Matter . | . . . . . . . . . . . . . Retrieved Components 12 | . 12 . . . . . . . . . . . Parts Scanalyzed 5 | . . . 4 1 . . . . . . . . Part Schematics Acquired 4 | . . . 3 1 . . . . . . . . Parts Damaged . | . . . . . . . . . . . . . Bothacking | -11 -10 -10 -8 -7 -7 -7 -7 -5 -5 -5 -5 -4 ------------ Run | Yrd Mat Sub Mat Fac Sto Rec Scr Fac Upp Upp Zhi Pro Used RIF Installer . | . . . . . . . . . . . . . Robots Hacked . | . . . . . . . . . . . . . Non-combat . | . . . . . . . . . . . . . Combat . | . . . . . . . . . . . . . Robot Hacks Applied . | . . . . . . . . . . . . . Relay Couplers Released . | . . . . . . . . . . . . . Fabnet Peak Effective % . | . . . . . . . . . . . . . Robots Rewired . | . . . . . . . . . . . . . Allies Hacked . | . . . . . . . . . . . . . Hacks Repelled . | . . . . . . . . . . . . . Allies | -11 -10 -10 -8 -7 -7 -7 -7 -5 -5 -5 -5 -4 -------- Run | Yrd Mat Sub Mat Fac Sto Rec Scr Fac Upp Upp Zhi Pro Total Allies . | . . . . . . . . . . . . . Largest Group . | . . . . . . . . . . . . . Highest-Rated Group . | . . . . . . . . . . . . . Highest-Rated Ally . | . . . . . . . . . . . . . Total Orders . | . . . . . . . . . . . . . Ally Attacks . | . . . . . . . . . . . . . Total Damage . | . . . . . . . . . . . . . Kills . | . . . . . . . . . . . . . Allies Corrupted . | . . . . . . . . . . . . . Allies Melted . | . . . . . . . . . . . . . Intel | -11 -10 -10 -8 -7 -7 -7 -7 -5 -5 -5 -5 -4 ------- Run | Yrd Mat Sub Mat Fac Sto Rec Scr Fac Upp Upp Zhi Pro Robot Analysis Total 14 | . . . 1 1 . . 8 . . . 4 . Derelict Logs Recovered 6 | . . 1 . . . . 2 . . 2 . 1 Drone Launches . | . . . . . . . . . . . . . Drone Recoveries . | . . . . . . . . . . . . . Exploration | -11 -10 -10 -8 -7 -7 -7 -7 -5 -5 -5 -5 -4 ------------- Run | Yrd Mat Sub Mat Fac Sto Rec Scr Fac Upp Upp Zhi Pro Turns Passed 20476 | 2 1348 1210 1925 2805 1047 1581 3978 4283 871 741 419 266 Spaces Moved 10019 | 1 784 749 715 1591 417 788 2122 1832 350 370 208 92 Core 13 | . . 6 3 . . . . . . . . 4 Treads . | . . . . . . . . . . . . . Legs 9287 | 1 784 84 652 1591 417 788 2122 1832 350 370 208 88 Wheels 719 | . . 659 60 . . . . . . . . . Hover . | . . . . . . . . . . . . . Flight . | . . . . . . . . . . . . . Fastest Speed 110 | 120 120 110 120 130 130 189 126 120 190 190 190 190 Average Speed 177 | 120 166 132 231 141 170 191 185 190 190 190 190 218 Slowest Speed 800 | 120 190 700 700 200 200 196 196 200 190 190 190 800 Overloaded Moves . | . . . . . . . . . . . . . Propulsion Burnouts . | . . . . . . . . . . . . . Robots Hopped . | . . . . . . . . . . . . . Cave-ins Triggered . | . . . . . . . . . . . . . Exploration Rate (%) 57 | 2 100 49 56 32 67 97 96 47 63 56 62 16 Regions Visited 12 Branch Regions 8 Pre-discovered Areas 10 | . . 1 . 1 . 5 . . . . 3 . Known Exits Taken 5 | . . 1 . 1 1 . 1 1 . . . . Unknown Exits Taken 7 | 1 1 . 1 . . 1 . . 1 1 1 . Scrap Searched 17 | . . 6 . . . . 10 . . 1 . . Spaces Dug 3 | . . . 1 . . . . 1 . . . 1 Terrain Destroyed 128 | . . 1 8 18 20 . . 73 6 1 . 1 Melee 2 | . . . . . . . . 1 . . . 1 Projectile 32 | . . 1 8 1 11 . . 5 6 . . . AOE 93 | . . . . 17 9 . . 67 . . . . Terrain Rammed . | . . . . . . . . . . . . . Walls Destroyed . | . . . . . . . . . . . . . Machines Disabled . | . . . . . . . . . . . . . Actions | -11 -10 -10 -8 -7 -7 -7 -7 -5 -5 -5 -5 -4 --------- Run | Yrd Mat Sub Mat Fac Sto Rec Scr Fac Upp Upp Zhi Pro Total 11800 | 4 810 860 950 1951 620 825 2161 2363 511 389 235 121 Wait 802 | . 5 7 122 198 90 7 8 234 126 . 5 . Move 10007 | . 783 748 714 1590 416 787 2121 1831 349 369 207 92 Hop . | . . . . . . . . . . . . . Pick Up 86 | . 3 13 18 4 5 2 9 22 3 3 4 . Fast Attach 64 | . 7 5 13 5 5 2 . 20 1 . 5 1 Attach 38 | . . 9 6 3 3 1 . 10 4 . 2 . Detach 17 | . 1 4 2 2 1 . . 5 . . 2 . Swap 81 | . 1 3 5 14 9 2 10 30 1 2 1 3 Drop 125 | 4 3 3 23 14 8 4 13 38 4 2 9 . Fire 562 | . 7 68 47 118 76 20 . 171 23 13 . 19 Melee 6 | . . . . . . . . 1 . . . 5 Ram . | . . . . . . . . . . . . . Kick 7 | . . . . 3 2 . . 1 . . . 1 Crush . | . . . . . . . . . . . . . Escape Stasis 5 | . . . . . 5 . . . . . . . Rewire . | . . . . . . . . . . . . . Trap . | . . . . . . . . . . . . . Miscellaneous . | . . . . . . . . . . . . . Route ------- -11/Scrapyard -10/Materials (discovered 6 exits: *Mat x3 / *Min x2 / *Sub) -10/Subcaves (discovered 2 exits: *Mat x2) -8/Materials (discovered 2 exits: *Fac x2) -7/Factory (discovered 3 exits: *Sto / Low x2) -7/Storage (discovered 2 exits: [*Fac] / *Rec) -7/Recycling (discovered 2 exits: *Fac / *Scr) -7/Scraptown (discovered 2 exits: *Fac x2) -5/Factory (discovered 3 exits: [*Fac] / *Upp x2) -5/Upper Caves -5/Upper Caves -5/Zhirov -4/Proximity Caves History --------- Turn | Location | Event 3 | -11/Scrapyard | Discovered new exit (range 0) 3 | -11/Scrapyard | Entered Materials 269 | -10/Materials | Discovered new exit (range 7) 314 | -10/Materials | Build established: Mutant 477 | -10/Materials | Discovered new exit (range 12) 570 | -10/Materials | Discovered new exit (range 16) 591 | -10/Materials | Central database locked down 634 | -10/Materials | Loaded intel: 8 terminal locations 658 | -10/Materials | Discovered new exit (range 14) 669 | -10/Materials | Identified exit to Mines 696 | -10/Materials | Learned Storage trap positions 715 | -10/Materials | Identified exit to Materials 724 | -10/Materials | Learned location of 1 exit from Recycling 744 | -10/Materials | Learned location of 2 exits from Mines 774 | -10/Materials | Learned Storage trap positions 1329 | -10/Materials | Discovered new exit (range 7) 1351 | -10/Materials | Entered Subcaves 1352 | -10/Subcaves | Identified exit to Materials 1519 | -10/Subcaves | Lost 3 parts (1n2w) 1811 | -10/Subcaves | Learned Materials terminal intel 1825 | -10/Subcaves | Visited Clippyterm 1829 | -10/Subcaves | Learned location of Extension (-6) 1829 | -10/Subcaves | Learned Research machine intel 2236 | -10/Subcaves | Disturbed a concealed Subdweller 2283 | -10/Subcaves | A swath of the cavern ceiling suddenly collapsed 2471 | -10/Subcaves | A Subdweller sparked back to life 2471 | -10/Subcaves | A Subdweller sparked back to life 2471 | -10/Subcaves | A Subdweller sparked back to life 2472 | -10/Subcaves | Core integrity fell below 50% 2502 | -10/Subcaves | Core integrity fell below 20% 2524 | -10/Subcaves | Found Prototype Energy Cannon 2524 | -10/Subcaves | Identified Powered Cannon 2526 | -10/Subcaves | Attached Powered Cannon, gained temporary slot: Power 2528 | -10/Subcaves | Lost 4 parts (2n2w) 2561 | -10/Subcaves | Entered Materials 2561 | -8/Materials | Evolved 4 slots: Propulsion x1, Utility x3 2562 | -8/Materials | Loaded intel: 12 terminal locations 3004 | -8/Materials | Build established: Scavenger-Mutant 3338 | -8/Materials | Discovered new exit (range 14) 4141 | -8/Materials | Build established: Hacker-Mutant 4422 | -8/Materials | Repaired Aluminum Leg 4433 | -8/Materials | Discovered new exit (range 12) 4486 | -8/Materials | Entered Factory 4486 | -7/Factory | Evolved 2 slots: Power x1, Utility x1 5347 | -7/Factory | Repaired Enh. Autogun 6734 | -7/Factory | Identified exit to Storage 6734 | -7/Factory | Identified exit to Lower Caves 7291 | -7/Factory | Entered Storage 7292 | -7/Storage | Loaded intel: 9 trap records 7459 | -7/Storage | System corruption reached 10% 7508 | -7/Storage | Repaired Imp. Light Armor Plating 7554 | -7/Storage | Repaired Imp. Shield Generator 7737 | -7/Storage | Identified exit to Recycling 8122 | -7/Storage | Discovered new exit (range 16) 8330 | -7/Storage | Used back door to open Recycling access 8338 | -7/Storage | Entered Recycling 8339 | -7/Recycling | Identified exit to Factory 9872 | -7/Recycling | Scanned before Scraplab entrance 9900 | -7/Recycling | Entered Scraplab 9916 | -7/Recycling | Discovered new exit (range 2) 9919 | -7/Recycling | Entered Scraptown 9919 | -7/Scraptown | System corruption cleaned by C-Scrubber 10541 | -7/Scraptown | Visited Comm Corps 10717 | -7/Scraptown | Scanned Subdweller tech in exchange for log data 10723 | -7/Scraptown | Learned Research emergency access door positions 10725 | -7/Scraptown | Learned Factory stockpile data 10839 | -7/Scraptown | Visited UFD Registry 10839 | -7/Scraptown | Registered with UFD as "Flexihead" 10991 | -7/Scraptown | Delivered Scrap Shield to a Scientist 12011 | -7/Scraptown | Discovered exit to Factory (range 4) 12217 | -7/Scraptown | Guru changed UFD alias to "Gaussbucket" 12321 | -7/Scraptown | Visited SPCMW 12380 | -7/Scraptown | Visited Assassins FH 12446 | -7/Scraptown | Visited Bundlers 12559 | -7/Scraptown | Visited IN-MT5's Study 12594 | -7/Scraptown | Visited CR-KLE's Repair Center 12637 | -7/Scraptown | Visited TADAMA 12709 | -7/Scraptown | Visited A0-MCA Data Center 12717 | -7/Scraptown | Given an A+ rating by A0-MCA 12723 | -7/Scraptown | Found A0-MCA's Component Scanner 12749 | -7/Scraptown | Visited Scrap Suit Storage 12783 | -7/Scraptown | Visited DA-N13 Charitable Foundation 12788 | -7/Scraptown | Found DCF Scrap (28 items) 13139 | -7/Scraptown | Build established: Derelict-Mutant 13190 | -7/Scraptown | Visited Science Guys 13261 | -7/Scraptown | Visited Analyses Database 13372 | -7/Scraptown | Visited Supply Room 13435 | -7/Scraptown | Visited Chapter 10 13484 | -7/Scraptown | Visited Supply Room 13527 | -7/Scraptown | Visited Abandonware Association 13549 | -7/Scraptown | Learned abandonware demo "POISON.EXE" 13549 | -7/Scraptown | Learned abandonware demo "HACKBUD.EXE" 13604 | -7/Scraptown | Visited Scrapoid Pod Storage 13883 | -7/Scraptown | Discovered exit to Factory (range 5) 13897 | -7/Scraptown | Entered Factory 13897 | -5/Factory | Evolved 4 slots: Utility x4 14283 | -5/Factory | Repaired Transmission Jammer 14418 | -5/Factory | Build established: Hacker-Mutant 15034 | -5/Factory | Hacking Suite fried by hacking feedback 15505 | -5/Factory | Lost 5 parts (1p1n2u1w) 15771 | -5/Factory | Build established: Scavenger-Mutant 15786 | -5/Factory | Spotted B-75 Beast 15986 | -5/Factory | Discovered new exit (range 10) 16295 | -5/Factory | Repaired Lrg. Storage Unit 16589 | -5/Factory | Fabricated Hyp. Railgun? 17123 | -5/Factory | Core integrity fell below 50% 17125 | -5/Factory | Destroyed B-75 Beast 17214 | -5/Factory | System corruption reached 10% 17416 | -5/Factory | Identified exit to Upper Caves 17775 | -5/Factory | Build established: Hacker-Mutant 18180 | -5/Factory | Entered Upper Caves 18182 | -5/Upper Caves | UFD Scientist delivered a prototype 18185 | -5/Upper Caves | Found Enh. Scrap Shield 19028 | -5/Upper Caves | Discovered new exit (range 12) 19051 | -5/Upper Caves | Entered another Upper Caves area 19661 | -5/Upper Caves | Learned 8 Factory zone layouts 19754 | -5/Upper Caves | Learned Factory stockpile data 19768 | -5/Upper Caves | Discovered new exit (range 14) 19792 | -5/Upper Caves | Entered Zhirov 19795 | -5/Zhirov | Discovered new exit (range 5) 19844 | -5/Zhirov | Met Zhirov 19916 | -5/Zhirov | Learned location of Quarantine (-3) 19916 | -5/Zhirov | Learned location of Command (-1) 19933 | -5/Zhirov | Zhirov requested help retrieving the SGEMP Prototype 19997 | -5/Zhirov | Found Alien Artifact 19997 | -5/Zhirov | Identified Integrated Reactor 19997 | -5/Zhirov | Installed Integrated Reactor, increased core energy generation (+10) 20064 | -5/Zhirov | Found Alien Artifact 20211 | -5/Zhirov | Entered Proximity Caves 20225 | -4/Proximity Caves | Learned Research trap positions 20356 | -4/Proximity Caves | Spotted B-86 Titan 20447 | -4/Proximity Caves | Core integrity fell below 20% 20477 | -4/Proximity Caves | Lost 9 parts (1p3n4u1w) 20477 | -4/Proximity Caves | Destroyed by B-86 Titan with Matter Neutralizer Last Messages --------------- 20430_ Penetrated by Slug. 20430_ Flexi-carbon Leg destroyed. 20430_ Slug penetrates Abandoned Machinery. 20433_ System corrupted: Hvy. Antimatter Reactor rejected. 20433_ Acquired Hvy. Antimatter Reactor. 20435_ Knocked back. 20435_ Penetrated by Slug. 20435_ Exp. Power Shielding destroyed. 20436_ Acquired 9 matter. 20440_ B-86 Titan suffers critical hit (Smash). 20440_ Knocked back. 20446_ F-cell Engine destroyed. 20446_ Knocked back. 20446_ Flexi-carbon Leg destroyed. 20451_ Knocked back. 20456_ B-86 Titan exits siege mode. 20461_ Knocked back. 20461_ Penetrated by Slug. 20467_ Knocked back. 20467_ Penetrated by Slug. Map ----- +----------------------------------------------------+ | ?????????????????????????????????????????????????? | | ?????????????????????????????????????????????????? | | ?????????????????????????????????????????????????? | | ?????????????????????????????????????????????????? | | ?????????????????????????????????????????????????? | | ?????????????????????????????????????????????????? | | ?????????????????????????????????????????????????? | | ?????????????????????????????????????????????????? | | ?????????????????????????????????????????????????? | | ?????### ????????????????????????????????????????? | | ????? ???????????????????????????????????????? | | ??#? ???????????????????????????????????????? | | ??# #???????????????????????????????????????? | | ??# #????????????????????????????????????????? | | #?? ??????????????????????????????????????????? | | ### #????####???????????????????????????????????? | | #???## #???????????????????????????????????? | | ##?## #????????????????????????????????????? | | ### #????????????????????????????????????? | | ## ## ####???????????????#?????????????????? | | ##### #?????????????? #?????????????????? | | ######????????? #?????????????????? | | """" #?????### #?????????????????? | | ##### """" ### #?????# # %#?????????????????? | | #???# """" ##?# #??### %;% ###???????????????? | | #??# "" #### ####;@%;; ;;# ??????? | | #? " " % BB % ??????? | | ? """" ##########;BB# #?????????? | | "" #???????? ####?? ##?????????? | | ##### #????????#???????? ##??????????? | | ????############??????????????????? #???????????? | | ?????????????????????????????????????#???????????? | | ?????????????????????????????????????????????????? | | ?????????????????????????????????????????????????? | | ?????????????????????????????????????????????????? | | ?????????????????????????????????????????????????? | | ?????????????????????????????????????????????????? | | ?????????????????????????????????????????????????? | | ?????????????????????????????????????????????????? | | ?????????????????????????????????????????????????? | | ?????????????????????????????????????????????????? | | ?????????????????????????????????????????????????? | | ?????????????????????????????????????????????????? | | ?????????????????????????????????????????????????? | | ?????????????????????????????????????????????????? | | ?????????????????????????????????????????????????? | | | | | | | | | +----------------------------------------------------+ Best States ------------- Heat Dissipation 102 Coolant Potential 65 Energy Generation 49 Energy Capacity 740 Matter Stores 300 Matter Capacity 300 Sight Range 21 Terrain Scan Density 10 Jamming Range 14 Base Temperature (-) 100 Armor Coverage 825 Resistance: KI 20 Resistance: TH 30 Resistance: EX 20 Resistance: EM 20 Resistance: I 20 Resistance: S 20 Resistance: P 20 Core Shielding 20 Power Shielding 90 Propulsion Shielding 33 Weapon Cycling 15 Evasion (%) 55 Target Analysis 6 Offensive Hacking 31 Authchip Count 1 Item Schematics ----------------- Adv. Terrain Scan Processor | -8/Materials | Scanalyzed Sub. Power Source | -8/Materials | Scanalyzed Sub. Optics | -8/Materials | Scanalyzed Imp. Titanium Leg | -7/Factory | Scanalyzed Lyr. Medium Armor Plating | -7/Recycling | Hacked Imp. Shield Generator | -7/Recycling | Hacked Hyp. Railgun | -5/Factory | Hacked Assault Drone Bay | -5/Zhirov | Free Exp. Heat Sink | -5/Zhirov | Free Exp. Optical Array | -5/Zhirov | Free Imp. Arc Thrower | -5/Zhirov | Free Robot Schematics ------------------ None Fabricated ------------ Hyp. Railgun | x2 | -5/Factory Alien Tech Used ----------------- Integrated Reactor Achievements -------------- None Challenges ------------ None Game ------ Seed WeaponsAdvancedSpear Manual? 0 Play Time 02:11:23 Cumulative 280.1 hours Start 2024.08.16 @ 18:37:22 End 2024.08.16 @ 21:05:57 Sessions 1 Manual Loads 0 Difficulty Adventurer Special Mode None Game No. 210 Rogue 63 Adventurer 121 Explorer 26 Win Type - Total 1 Types 1/0/0/0/0/0/0/0/0 Lore% 67 Gallery% 69 Achievement% 68 Wizard Run 0 Options --------- Layout 2 ASCII 0 Keyboard 0 Movement Mouse Keybinds 0 Fullscreen 0 Font 18/CogNarrow Map View 64x51 Zoom Use 0% Tactical HUD 1 Map Filters NONE Filters BRIGHTNESS(115)|SATURATION(100)|LOW_CONTRAST(0,16,30) Steam 1 RUN: 88d05e69-8393-4106-92f0-372298780755